fUSD/lending_fUSD_20241106
["ID","MTS","AMOUNT","RATE_DAILY","PERIOD"]
[341482162,1730920315320,-500.0,0.00031506,2]
[341482163,1730920315329,-3817.82,0.00031506,2]
[341482164,1730920315339,-3046.7,0.00031506,2]
[341482165,1730920315348,-740.35,0.00031506,2]
[341482166,1730920315358,-3060.48,0.00031506,2]
[341482167,1730920315367,-1194.34,0.00031506,2]
[341482168,1730920315376,-3836.62,0.00031506,2]
[341482169,1730920315386,-4916.89,0.00031506,2]
[341482170,1730920315396,-3245.5,0.00031506,2]
[341482171,1730920315405,-1506.02,0.00031506,2]
[341482172,1730920315415,-2015.43,0.00031506,2]
[341482173,1730920315426,-500.0,0.00031506,2]
[341482174,1730920315435,-1997.41,0.00031506,2]
[341482175,1730920315446,-548.49,0.00031506,2]
[341482176,1730920315456,-1188.15,0.00031506,2]
[341482177,1730920315465,-500.0,0.00031506,2]
[341482178,1730920315475,-3551.02,0.00031506,2]
[341482179,1730920315484,-9431.91,0.00031506,2]
[341482180,1730920315494,-543.87,0.00031506,2]
[341482181,1730920315503,-500.0,0.00031506,2]
[341482182,1730920315512,-2959.67,0.00031506,2]
[341482183,1730920315522,-843.81,0.00031506,2]
[341482184,1730920315531,-2985.74,0.00031506,2]
[341482185,1730920315541,-643.72,0.00031506,2]
[341482186,1730920315551,-642.61,0.00031506,2]
[341482187,1730920315560,-528.21,0.00031506,2]
[341482188,1730920315570,-2640.34,0.00031506,2]
[341482189,1730920315580,-636.38,0.00031506,2]
[341482190,1730920315590,-3511.16,0.00031506,2]
[341482191,1730920315599,-500.0,0.00031506,2]
[341482192,1730920315609,-836.94,0.00031506,2]
[341482193,1730920315619,-817.7,0.00031506,2]
[341482194,1730920315628,-1645.62,0.00031506,2]
[341482195,1730920315638,-500.0,0.00031506,2]
[341482196,1730920315652,-1697.61,0.00031506,2]
[341482197,1730920315662,-643.83,0.00031506,2]
[341482198,1730920315672,-1293.6,0.00031506,2]
[341482199,1730920315684,-2894.45,0.00031506,2]
[341482200,1730920315693,-820.62,0.00031506,2]
[341482201,1730920315703,-512.13966545,0.00031506,2]
[341482202,1730920315712,-4036.84,0.00031506,2]
[341482203,1730920315723,-10566.14,0.00031506,2]
[341482204,1730920315733,-150.0,0.00031507,2]
[341482205,1730920315742,-150.0,0.00031509,2]
[341482206,1730920315751,-150.0,0.00031525,2]
[341482207,1730920315761,-533.26578244,0.00031529,5]
[341482208,1730920315770,-1000.0,0.00031529,5]
[341482209,1730920315780,-150.0,0.00031532,2]
[341482210,1730920315792,-150.0,0.00031546,2]
[341482211,1730920315803,-1000.0,0.00031556,5]
[341482212,1730920315814,-1000.0,0.00031556,5]
[341482213,1730920315824,-150.0,0.00031559,2]
[341482214,1730920315834,-150.0,0.0003156,2]
[341482215,1730920315843,-150.0,0.00031573,2]
[341482216,1730920315853,-150.0,0.00031585,2]
[341482217,1730920315863,-150.0,0.00031588,2]
[341482218,1730920315872,-150.0,0.00031604,2]
[341482219,1730920315882,-150.0,0.0003162,2]
[341482220,1730920315891,-150.0,0.0003162,2]
[341482221,1730920315901,-150.0,0.00031624,2]
[341482222,1730920315911,-150.0,0.00031626,2]
[341482223,1730920315920,-150.0,0.00031632,2]
[341482224,1730920315933,-300.0,0.00031642,2]
[341482225,1730920315943,-176.0,0.00031644,2]
[341482226,1730920315952,-150.0,0.0003165,2]
[341482227,1730920315962,-150.0,0.0003165,2]
[341482228,1730920315971,-150.0,0.00031655,2]
[341482229,1730920315981,-150.0,0.00031659,2]
[341482230,1730920315990,-105527.1924,0.00031677,2]
[341482231,1730920315999,-1166.9265,0.00031677,2]
[341482232,1730920316009,-280.903323,0.00031677,7]
[341482233,1730920316019,-280.903323,0.00031677,7]
[341482234,1730920316031,-4472.046259,0.00031677,7]
[341482235,1730920316044,-4472.046259,0.00031677,7]
[341482236,1730920316058,-151.0,0.00031677,7]
[341482237,1730920316067,-192.400554,0.00031677,7]
[341482238,1730920316077,-151.0,0.00031677,7]
[341482239,1730920316086,-286.530854,0.00031677,7]
[341482240,1730920316096,-512.382164,0.00031677,7]
[341482241,1730920316105,-512.382164,0.00031677,7]
[341482242,1730920316115,-150.0,0.00031681,2]
[341482243,1730920316125,-151.41146315,0.00031682,2]
[341482244,1730920316135,-661.67,0.00031698,2]
[341482245,1730920316144,-661.67,0.00031698,2]
[341482246,1730920316156,-661.67,0.00031698,2]
[341482247,1730920316167,-661.67,0.00031698,2]
[341482248,1730920316180,-661.85,0.00031698,2]
[341482249,1730920316194,-1363.32,0.000317,7]
[341482250,1730920316203,-2400.0,0.000317,11]
[341482251,1730920316213,-150.0,0.00031703,2]
[341482252,1730920316222,-150.0,0.00031706,2]
[341482253,1730920316232,-150.0,0.00031711,2]
[341482254,1730920316242,-150.0,0.00031723,2]
[341482255,1730920316252,-150.0,0.00031724,2]
[341482256,1730920316262,-150.0,0.00031737,2]
[341482257,1730920316272,-150.0,0.00031755,2]
[341482258,1730920316282,-150.0,0.00031762,2]
[341482259,1730920316292,-500.0,0.00031773,2]
[341482260,1730920316301,-160.699,0.00031775,30]
[341482261,1730920316310,-500.0,0.00031775,2]
[341482262,1730920316321,-500.0,0.00031776,2]
[341482263,1730920316331,-1088.51,0.00031776,2]
[341482264,1730920316343,-500.0,0.00031776,2]
[341482265,1730920316352,-1655.77,0.00031776,2]
[341482266,1730920316362,-1742.61,0.00031776,2]
[341482267,1730920316372,-500.0,0.00031776,2]
[341482268,1730920316382,-1526.26,0.00031776,2]
[341482269,1730920316393,-556.19,0.00031776,2]
[341482270,1730920316404,-500.0,0.00031776,2]
[341482271,1730920316414,-1462.22,0.00031776,2]
[341482272,1730920316424,-500.0,0.00031776,2]
[341482273,1730920316436,-2367.71,0.00031776,2]
[341482274,1730920316446,-1050.07,0.00031776,2]
[341482275,1730920316455,-2575.19,0.00031776,2]
[341482276,1730920316464,-1244.0,0.00031776,2]
[341482277,1730920316473,-1151.76,0.00031776,2]
[341482278,1730920316483,-666.04,0.00031776,2]
[341482279,1730920316493,-500.0,0.00031776,2]
[341482280,1730920316504,-500.0,0.00031776,2]
[341482281,1730920316514,-665.76,0.00031776,2]
[341482282,1730920316524,-500.0,0.00031776,2]
[341482283,1730920316534,-500.0,0.00031776,2]
[341482284,1730920316543,-1461.34,0.00031776,2]
[341482285,1730920316552,-3260.26,0.00031776,2]
[341482286,1730920316561,-1992.14,0.00031776,2]
[341482287,1730920316571,-151.0,0.00031776,7]
[341482288,1730920316581,-539.16,0.00031776,2]
[341482289,1730920316590,-1672.07,0.00031776,2]
[341482290,1730920316599,-151.0,0.00031776,7]
[341482291,1730920316608,-682.27,0.00031776,2]
[341482292,1730920316618,-500.0,0.00031776,2]
[341482293,1730920316627,-1366.97,0.00031776,2]
[341482294,1730920316637,-500.0,0.00031776,2]
[341482295,1730920316651,-500.0,0.00031776,2]
[341482296,1730920316660,-1865.19,0.00031776,2]
[341482297,1730920316670,-2988.71,0.00031776,2]
[341482298,1730920316681,-509.23376292,0.00031776,2]
[341482299,1730920316690,-1872.41,0.00031776,2]
[341482300,1730920316700,-151.0,0.00031776,7]
[341482301,1730920316710,-151.0,0.00031776,7]
[341482302,1730920316720,-2081.87,0.00031776,2]
[341482303,1730920316729,-2130.92,0.00031776,2]
[341482304,1730920316741,-856.963678,0.00031776,7]
[341482305,1730920316751,-500.0,0.00031776,2]
[341482306,1730920316761,-2677.77,0.00031776,2]
[341482307,1730920316770,-623.54,0.00031776,2]
[341482308,1730920316781,-856.963678,0.00031776,7]
[341482309,1730920316790,-1006.28,0.00031776,2]
[341482310,1730920316800,-1646.48,0.00031776,2]
[341482311,1730920316809,-1165.332698,0.00031776,7]
[341482312,1730920316819,-1165.332698,0.00031776,7]
[341482313,1730920316829,-1286.58,0.00031776,2]
[341482314,1730920316839,-1327.67,0.00031776,2]
[341482315,1730920316848,-500.0,0.00031776,2]
[341482316,1730920316858,-539.45137931,0.00031776,2]
[341482317,1730920316868,-500.0,0.00031776,2]
[341482318,1730920316878,-500.0,0.00031776,2]
[341482319,1730920316888,-1501.3,0.00031776,2]
[341482320,1730920316898,-2118.11,0.00031776,2]
[341482321,1730920316907,-500.0,0.00031776,2]
[341482322,1730920316918,-1200.15,0.00031776,2]
[341482323,1730920316931,-2973.59,0.00031776,2]
[341482324,1730920316940,-2001.24,0.00031776,2]
[341482325,1730920317027,-1423.53,0.00031776,2]
[341482326,1730920317037,-500.0,0.00031776,2]
[341482327,1730920317046,-2375.97,0.00031776,2]
[341482328,1730920317056,-2285.43,0.00031776,2]
[341482329,1730920317065,-500.0,0.00031776,2]
[341482330,1730920317075,-500.0,0.00031776,2]
[341482331,1730920317084,-4812.38,0.00031776,2]
[341482332,1730920317094,-2085.84,0.00031776,2]
[341482333,1730920317103,-809.72,0.00031776,2]
[341482334,1730920317112,-500.0,0.00031776,2]
[341482335,1730920317122,-500.0,0.00031776,2]
[341482336,1730920317131,-201.220383,0.00031776,7]
[341482337,1730920317141,-500.0,0.00031776,2]
[341482338,1730920317150,-1110.52,0.00031776,2]
[341482339,1730920317160,-1091.54,0.00031776,2]
[341482340,1730920317169,-201.220383,0.00031776,7]
[341482341,1730920317180,-500.0,0.00031776,2]
[341482342,1730920317189,-1490.64,0.00031776,2]
[341482343,1730920317198,-638.68,0.00031776,2]
[341482344,1730920317207,-500.0,0.00031776,2]
[341482345,1730920317216,-548.64,0.00031776,2]
[341482346,1730920317226,-1763.49,0.00031776,2]
[341482347,1730920317235,-710.9,0.00031776,2]
[341482348,1730920317244,-151.0,0.00031776,7]
[341482349,1730920317254,-744.34,0.00031776,2]
[341482350,1730920317263,-500.0,0.00031776,2]
[341482351,1730920317272,-500.0,0.00031776,2]
[341482352,1730920317282,-1425.55,0.00031776,2]
[341482353,1730920317291,-2338.76,0.00031776,2]
[341482354,1730920317301,-3412.15,0.00031776,2]
[341482355,1730920317310,-1791.25,0.00031776,2]
[341482356,1730920317320,-500.0,0.00031776,2]
[341482357,1730920317330,-500.0,0.00031776,2]
[341482358,1730920317339,-500.0,0.00031776,2]
[341482359,1730920317348,-1556.18,0.00031776,2]
[341482360,1730920317357,-2222.02,0.00031776,2]
[341482361,1730920317367,-1376.48,0.00031776,2]
[341482362,1730920317376,-500.0,0.00031776,2]
[341482363,1730920317385,-1519.66,0.00031776,2]
[341482364,1730920317395,-1479.91,0.00031776,2]
[341482365,1730920317405,-500.0,0.00031776,2]
[341482366,1730920317414,-1420.96,0.00031776,2]
[341482367,1730920317424,-500.0,0.00031776,2]
[341482368,1730920317435,-500.0,0.00031776,2]
[341482369,1730920317444,-324.93218914,0.00031776,2]
[341482370,1730920317453,-650.66,0.00031776,2]
[341482371,1730920317462,-4920.2,0.00031776,2]
[341482372,1730920317471,-712.58,0.00031776,2]
[341482373,1730920317480,-151.0,0.00031776,7]
[341482374,1730920317489,-585.62,0.00031776,2]
[341482375,1730920317499,-3135.26,0.00031776,2]
[341482376,1730920317508,-1229.56,0.00031776,2]
[341482377,1730920317517,-1326.98,0.00031776,2]
[341482378,1730920317526,-574.94,0.00031776,2]
[341482379,1730920317536,-1234.71,0.00031776,2]
[341482380,1730920317545,-16022.5295941,0.00031776,2]
[341482381,1730920317555,-2280.27,0.00031776,2]
[341482382,1730920317564,-981.43,0.00031776,2]
[341482383,1730920317573,-500.0,0.00031776,2]
[341482384,1730920317582,-151.0,0.00031776,7]
[341482385,1730920317591,-678.93,0.00031776,2]
[341482386,1730920317600,-500.0,0.00031776,2]
[341482387,1730920317609,-151.0,0.00031776,7]
[341482388,1730920317618,-220.161466,0.00031776,7]
[341482389,1730920317627,-444.01123869,0.00031776,2]
[341482390,1730920317637,-502.9037455,0.00031776,2]
[341482391,1730920317650,-500.0,0.00031776,2]
[341482392,1730920317659,-151.0,0.00031776,7]
[341482393,1730920317668,-500.0,0.00031776,2]
[341482394,1730920317680,-738.54,0.00031776,2]
[341482395,1730920317690,-500.0,0.00031776,2]
[341482396,1730920317699,-200.0,0.00031777,2]
[341482397,1730920317708,-500.0,0.00031777,2]
[341482398,1730920317717,-500.0,0.00031777,2]
[341482399,1730920317726,-586.7,0.00031777,2]
[341482400,1730920317736,-500.0,0.00031777,2]
[341482401,1730920317745,-587.43,0.00031777,2]
[341482402,1730920317754,-504.98927992,0.00031777,2]
[341482403,1730920317763,-500.0,0.00031777,2]
[341482404,1730920317773,-500.0,0.00031777,2]
[341482405,1730920317782,-500.0,0.00031777,2]
[341482406,1730920317791,-500.0,0.00031777,2]
[341482407,1730920317800,-1227.89,0.00031777,2]
[341482408,1730920317809,-500.0,0.00031777,2]
[341482409,1730920317818,-500.0,0.00031777,2]
[341482410,1730920317827,-986.41,0.00031777,2]
[341482411,1730920317836,-500.0,0.00031777,2]
[341482412,1730920317845,-500.0,0.00031777,2]
[341482413,1730920317854,-500.0,0.00031777,2]
[341482414,1730920317863,-500.0,0.00031777,2]
[341482415,1730920317873,-635.55,0.00031777,2]
[341482416,1730920317882,-500.0,0.00031777,2]
[341482417,1730920317891,-500.0,0.00031777,2]
[341482418,1730920317901,-500.0,0.00031777,2]
[341482419,1730920317910,-500.0,0.00031777,2]
[341482420,1730920317921,-500.0,0.00031777,2]
[341482421,1730920317932,-500.0,0.00031777,2]
[341482422,1730920317942,-500.0,0.00031777,2]
[341482423,1730920317950,-500.0,0.00031777,2]
[341482424,1730920317959,-500.0,0.00031777,2]
[341482425,1730920317969,-500.0,0.00031777,2]
[341482426,1730920317979,-500.0,0.00031777,2]
[341482427,1730920317989,-500.0,0.00031777,2]
[341482428,1730920318001,-1011.94,0.00031777,2]
[341482429,1730920318011,-500.0,0.00031777,2]
[341482430,1730920318020,-500.0,0.00031777,2]
[341482431,1730920318032,-500.0,0.00031777,2]
[341482432,1730920318041,-500.0,0.00031777,2]
[341482433,1730920318050,-762.08,0.00031777,2]
[341482434,1730920318061,-500.0,0.00031777,2]
[341482435,1730920318072,-500.0,0.00031777,2]
[341482436,1730920318083,-500.0,0.00031777,2]
[341482437,1730920318093,-500.0,0.00031777,2]
[341482438,1730920318103,-500.0,0.00031777,2]
[341482439,1730920318112,-500.0,0.00031777,2]
[341482440,1730920318122,-500.0,0.00031777,2]
[341482441,1730920318131,-500.0,0.00031777,2]
[341482442,1730920318141,-500.0,0.00031777,2]
[341482443,1730920318151,-500.0,0.00031777,30]
[341482444,1730920318160,-500.0,0.00031777,2]
[341482445,1730920318170,-500.0,0.00031777,2]
[341482446,1730920318180,-500.0,0.00031777,2]
[341482447,1730920318190,-500.0,0.00031777,2]
[341482448,1730920318199,-500.0,0.00031777,2]
[341482449,1730920318208,-522.46,0.00031777,2]
[341482450,1730920318217,-500.0,0.00031777,2]
[341482451,1730920318228,-500.0,0.00031777,2]
[341482452,1730920318237,-709.38,0.00031777,2]
[341482453,1730920318246,-500.0,0.00031777,2]
[341482454,1730920318255,-500.0,0.00031777,2]
[341482455,1730920318264,-500.0,0.00031777,2]
[341482456,1730920318274,-500.0,0.00031777,2]
[341482457,1730920318283,-500.0,0.00031777,2]
[341482458,1730920318292,-500.0,0.00031777,2]
[341482459,1730920318302,-500.0,0.00031777,2]
[341482460,1730920318312,-1146.71,0.00031777,2]
[341482461,1730920318321,-676.74,0.00031777,2]
[341482462,1730920318330,-500.0,0.00031777,2]
[341482463,1730920318339,-500.0,0.00031777,2]
[341482464,1730920318350,-574.97,0.00031777,2]
[341482465,1730920318360,-500.0,0.00031777,2]
[341482466,1730920318372,-500.0,0.00031777,2]
[341482467,1730920318382,-500.0,0.00031777,2]
[341482468,1730920318393,-500.87286001,0.00031777,2]
[341482469,1730920318404,-500.0,0.00031777,2]
[341482470,1730920318413,-831.95,0.00031777,2]
[341482471,1730920318427,-1069.37,0.00031777,2]
[341482472,1730920318437,-766.47,0.00031777,2]
[341482473,1730920318447,-500.0,0.00031777,2]
[341482474,1730920318457,-500.0,0.00031777,2]
[341482475,1730920318468,-500.0,0.00031777,2]
[341482476,1730920318477,-500.0,0.00031777,2]
[341482477,1730920318486,-500.0,0.00031777,2]
[341482478,1730920318495,-660.15,0.00031777,2]
[341482479,1730920318506,-500.0,0.00031777,2]
[341482480,1730920318516,-500.0,0.00031777,2]
[341482481,1730920318528,-500.0,0.00031777,2]
[341482482,1730920318539,-589.58,0.00031777,2]
[341482483,1730920318549,-506.59,0.00031777,2]
[341482484,1730920318559,-500.0,0.00031777,2]
[341482485,1730920318570,-500.0,0.00031777,2]
[341482486,1730920318580,-1309.93,0.00031777,2]
[341482487,1730920318591,-500.0,0.00031777,2]
[341482488,1730920318601,-500.0,0.00031777,2]
[341482489,1730920318611,-500.0,0.00031777,2]
[341482490,1730920318622,-595.77,0.00031777,2]
[341482491,1730920318632,-835.91,0.00031777,2]
[341482492,1730920318645,-500.0,0.00031777,2]
[341482493,1730920318655,-500.0,0.00031777,2]
[341482494,1730920318667,-504.02538985,0.00031777,2]
[341482495,1730920318681,-500.0,0.00031777,2]
[341482496,1730920318691,-888.48,0.00031777,2]
[341482497,1730920318700,-500.0,0.00031777,2]
[341482498,1730920318709,-500.0,0.00031777,2]
[341482499,1730920318719,-500.0,0.00031777,2]
[341482500,1730920318729,-1041.47,0.00031777,2]
[341482501,1730920318738,-500.0,0.00031777,2]
[341482502,1730920318748,-500.0,0.00031777,2]
[341482503,1730920318757,-500.0,0.00031777,2]
[341482504,1730920318767,-500.0,0.00031777,2]
[341482505,1730920318776,-500.0,0.00031777,2]
[341482506,1730920318787,-500.0,0.00031777,2]
[341482507,1730920318797,-500.0,0.00031777,2]
[341482508,1730920318806,-526.95,0.00031777,2]
[341482509,1730920318815,-500.0,0.00031777,2]
[341482510,1730920318824,-500.0,0.00031777,2]
[341482511,1730920318834,-500.0,0.00031777,2]
[341482512,1730920318844,-500.0,0.00031777,2]
[341482513,1730920318854,-500.0,0.00031777,2]
[341482514,1730920318863,-700.0,0.00031777,2]
[341482515,1730920318873,-500.0,0.00031777,2]
[341482516,1730920318882,-243.22767279,0.00031777,2]
[341482517,1730920318892,-500.0,0.00031777,2]
[341482518,1730920318903,-500.0,0.00031777,2]
[341482519,1730920318914,-500.0,0.00031777,2]
[341482520,1730920318924,-500.0,0.00031777,2]
[341482521,1730920318936,-500.0,0.00031777,2]
[341482522,1730920318945,-500.0,0.00031777,2]
[341482523,1730920318954,-500.0,0.00031777,2]
[341482524,1730920318964,-500.0,0.00031777,2]
[341482525,1730920318973,-500.0,0.00031777,2]
[341482526,1730920318983,-863.16,0.00031777,2]
[341482527,1730920318994,-500.0,0.00031777,2]
[341482528,1730920319005,-500.0,0.00031777,2]
[341482529,1730920319016,-501.42200365,0.00031777,2]
[341482530,1730920319025,-500.0,0.00031777,2]
[341482531,1730920319035,-500.0,0.00031777,2]
[341482532,1730920319044,-500.0,0.00031777,2]
[341482533,1730920319053,-500.0,0.00031777,2]
[341482534,1730920319063,-500.0,0.00031777,2]
[341482535,1730920319072,-500.0,0.00031777,2]
[341482536,1730920319082,-500.0,0.00031777,2]
[341482537,1730920319091,-500.0,0.00031777,2]
[341482538,1730920319109,-500.0,0.00031777,2]
[341482539,1730920319121,-500.0,0.00031777,2]
[341482540,1730920319130,-500.0,0.00031777,2]
[341482541,1730920319140,-500.0,0.00031777,2]
[341482542,1730920319149,-500.0,0.00031777,2]
[341482543,1730920319158,-500.0,0.00031777,2]
[341482544,1730920319168,-500.0,0.00031777,2]
[341482545,1730920319183,-660.26,0.00031777,2]
[341482546,1730920319192,-500.0,0.00031777,2]
[341482547,1730920319201,-500.0,0.00031777,2]
[341482548,1730920319211,-1029.13,0.00031777,2]
[341482549,1730920319220,-500.0,0.00031777,2]
[341482550,1730920319229,-500.0,0.00031777,2]
[341482551,1730920319239,-500.0,0.00031777,2]
[341482552,1730920319248,-291.99666743,0.00031777,2]
[341482553,1730920319259,-500.0,0.00031777,2]
[341482554,1730920319268,-500.0,0.00031777,2]
[341482555,1730920319278,-1547.7,0.00031777,2]
[341482556,1730920319288,-1162.33232775,0.00031777,20]
[341482557,1730920319297,-500.0,0.00031777,2]
[341482558,1730920319307,-500.0,0.00031777,2]
[341482559,1730920319316,-500.0,0.00031777,2]
[341482560,1730920319325,-500.0,0.00031777,2]
[341482561,1730920319335,-500.0,0.00031777,2]
[341482562,1730920319346,-581.27,0.00031777,2]
[341482563,1730920319356,-500.0,0.00031777,2]
[341482564,1730920319367,-500.0,0.00031777,2]
[341482565,1730920319378,-500.0,0.00031777,2]
[341482566,1730920319387,-500.0,0.00031777,2]
[341482567,1730920319397,-500.0,0.00031777,2]
[341482568,1730920319407,-500.0,0.00031777,2]
[341482569,1730920319416,-27.60424136,0.00031777,2]
[341482570,1730920319440,-472.39575864,0.00031777,2]
[341482571,1730920319450,-500.0,0.00031777,2]
[341482572,1730920319459,-342.55424136,0.00031777,2]
[341482573,1730920319486,-500.0,0.00027671,2]
[341482574,1730920319495,-800.0,0.000277,10]
[341482575,1730920319506,-436.00969,0.00030901,7]
[341482576,1730920319518,-157.44575864,0.00031777,2]
[341482577,1730920319529,-888.23,0.00031777,2]
[341482578,1730920319538,-500.0,0.00031777,2]
[341482579,1730920319548,-500.0,0.00031777,2]
[341482580,1730920319559,-500.0,0.00031777,2]
[341482581,1730920319568,-500.0,0.00031777,2]
[341482582,1730920319580,-500.0,0.00031777,2]
[341482583,1730920319590,-500.0,0.00031777,2]
[341482584,1730920319600,-150.41385781,0.00031777,2]
[341482585,1730920319611,-500.0,0.00031777,2]
[341482586,1730920319622,-500.0,0.00031777,2]
[341482587,1730920319633,-676.3,0.00031777,2]
[341482588,1730920319644,-732.23,0.00031777,2]
[341482589,1730920319655,-511.53,0.00031777,2]
[341482590,1730920319666,-151.0,0.00031777,7]
[341482591,1730920319678,-686.35,0.00031777,2]
[341482592,1730920319687,-500.0,0.00031777,2]
[341482593,1730920319696,-500.0,0.00031777,2]
[341482594,1730920319706,-592.65,0.00031777,2]
[341482595,1730920319715,-500.0,0.00031777,2]
[341482596,1730920319727,-500.0,0.00031777,2]
[341482597,1730920319736,-500.0,0.00031777,2]
[341482598,1730920319748,-500.0,0.00031777,2]
[341482599,1730920319758,-500.0,0.00031777,2]
[341482600,1730920319768,-500.0,0.00031777,2]
[341482601,1730920319777,-500.0,0.00031777,2]
[341482602,1730920319786,-500.0,0.00031777,2]
[341482603,1730920319796,-500.0,0.00031777,2]
[341482604,1730920319805,-500.0,0.00031777,2]
[341482605,1730920319815,-500.0,0.00031777,2]
[341482606,1730920319824,-500.0,0.00031777,2]
[341482607,1730920319836,-831.02,0.00031777,2]
[341482608,1730920319846,-500.0,0.00031777,2]
[341482609,1730920319856,-263.969992,0.00031777,7]
[341482610,1730920319868,-500.0,0.00031777,2]
[341482611,1730920319878,-500.0,0.00031777,2]
[341482612,1730920319888,-500.0,0.00031777,2]
[341482613,1730920319898,-1000.0,0.00031777,10]
[341482614,1730920319908,-500.0,0.00031777,2]
[341482615,1730920319918,-500.0,0.00031777,2]
[341482616,1730920319930,-500.0,0.00031777,2]
[341482617,1730920319939,-151.0,0.00031777,7]
[341482618,1730920319948,-500.0,0.00031777,2]
[341482619,1730920319958,-605.87,0.00031777,2]
[341482620,1730920319967,-500.0,0.00031777,2]
[341482621,1730920319978,-228.504277,0.00031777,7]
[341482622,1730920319988,-500.0,0.00031777,2]
[341482623,1730920319999,-500.0,0.00031777,2]
[341482624,1730920320009,-500.0,0.00031777,2]
[341482625,1730920320019,-500.0,0.00031777,2]
[341482626,1730920320029,-539.26,0.00031777,2]
[341482627,1730920320038,-500.0,0.00031777,2]
[341482628,1730920320048,-626.97,0.00031777,2]
[341482629,1730920320057,-500.0,0.00031777,2]
[341482630,1730920320067,-286.352802,0.00031777,7]
[341482631,1730920320078,-500.0,0.00031777,2]
[341482632,1730920320088,-615.19,0.00031777,2]
[341482633,1730920320097,-286.352802,0.00031777,7]
[341482634,1730920320107,-838.05,0.00031777,2]
[341482635,1730920320118,-1037.08,0.00031777,2]
[341482636,1730920320128,-500.0,0.00031777,2]
[341482637,1730920320139,-500.0,0.00031777,2]
[341482638,1730920320149,-500.0,0.00031777,2]
[341482639,1730920320159,-613.68,0.00031777,2]
[341482640,1730920320168,-500.0,0.00031777,2]
[341482641,1730920320182,-518.30963726,0.00031777,2]
[341482642,1730920320191,-500.0,0.00031777,2]
[341482643,1730920320201,-500.0,0.00031777,2]
[341482644,1730920320211,-500.0,0.00031777,2]
[341482645,1730920320222,-500.0,0.00031777,2]
[341482646,1730920320232,-511.6318774,0.00031777,2]
[341482647,1730920320242,-500.0,0.00031777,2]
[341482648,1730920320252,-673.13,0.00031777,2]
[341482649,1730920320261,-500.0,0.00031777,2]
[341482650,1730920320272,-500.0,0.00031777,2]
[341482651,1730920320282,-530.07,0.00031777,2]
[341482652,1730920320292,-500.0,0.00031777,2]
[341482653,1730920320302,-500.0,0.00031777,2]
[341482654,1730920320311,-500.0,0.00031777,2]
[341482655,1730920320321,-500.0,0.00031777,2]
[341482656,1730920320331,-500.0,0.00031777,2]
[341482657,1730920320341,-500.0,0.00031777,2]
[341482658,1730920320352,-849.79,0.00031777,2]
[341482659,1730920320362,-500.0,0.00031777,2]
[341482660,1730920320372,-500.0,0.00031777,2]
[341482661,1730920320384,-500.0,0.00031777,2]